[Event "Titled Tuesday Blitz February 07 Late 2023"]
[White "Bouget, Alexandre"]
[Black "Stolz, Mike"]
[WhiteFideId "681318"]
[BlackFideId "4617134"]
[WhiteElo "2267"]
[BlackElo "2330"]
[Result "1-0"]
[Round "04"]
[TimeControl "180+2"]
[Date "2023.02.07"]
[WhiteClock "0:00:08"]
[BlackClock "0:00:03"]

1. d4 {[%clk 0:02:53]}  Nf6 {[%clk 0:02:59]} 2. c4 {[%clk 0:02:49]}  e6 {[%clk 0:02:59]} 3. Nc3 {[%clk 0:02:48]}  Bb4 {[%clk 0:02:59]} 4. a3 {[%clk 0:02:49]}  Bxc3+ {[%clk 0:02:58]} 5. bxc3 {[%clk 0:02:50]}  c5 {[%clk 0:02:58]} 6. f3 {[%clk 0:02:50]}  Nc6 {[%clk 0:02:57]} 7. e4 {[%clk 0:02:49]}  d6 {[%clk 0:02:56]} 8. Bg5 {[%clk 0:02:48]}  Qe7 {[%clk 0:02:50]} 9. d5 {[%clk 0:02:37]}  Ne5 {[%clk 0:02:37]} 10. Bd3 {[%clk 0:02:05]}  h6 {[%clk 0:02:35]} 11. Bh4 {[%clk 0:02:04]}  Ng6 {[%clk 0:02:19]} 12. Bf2 {[%clk 0:02:02]}  exd5 {[%clk 0:02:17]} 13. cxd5 {[%clk 0:02:00]}  O-O {[%clk 0:02:08]} 14. Ne2 {[%clk 0:01:59]}  Rb8 {[%clk 0:01:52]} 15. a4 {[%clk 0:01:49]}  a6 {[%clk 0:01:49]} 16. a5 {[%clk 0:01:48]}  Nh5 {[%clk 0:01:48]} 17. O-O {[%clk 0:01:43]}  Nhf4 {[%clk 0:01:48]} 18. Nxf4 {[%clk 0:01:41]}  Nxf4 {[%clk 0:01:49]} 19. Bc4 {[%clk 0:01:34]}  Qf6 {[%clk 0:01:23]} 20. Qd2 {[%clk 0:01:27]}  Qg5 {[%clk 0:01:16]} 21. Be3 {[%clk 0:01:25]}  Nh3+ {[%clk 0:00:48]} 22. Kh1 {[%clk 0:01:22]}  Qh5 {[%clk 0:00:44]} 23. gxh3 {[%clk 0:01:20]}  Bxh3 {[%clk 0:00:43]} 24. Rf2 {[%clk 0:01:18]}  f5 {[%clk 0:00:41]} 25. Rg1 {[%clk 0:00:44]}  fxe4 {[%clk 0:00:36]} 26. Bxh6 {[%clk 0:00:40]}  exf3 {[%clk 0:00:20]} 27. Rxg7+ {[%clk 0:00:34]}  Kh8 {[%clk 0:00:20]} 28. Rg3 {[%clk 0:00:31]}  Bg2+ {[%clk 0:00:19]} 29. Kg1 {[%clk 0:00:31]}  Rg8 {[%clk 0:00:15]} 30. Bf4 {[%clk 0:00:24]}  Rbe8 {[%clk 0:00:15]} 31. Bxd6 {[%clk 0:00:18]}  Rxg3 {[%clk 0:00:12]} 32. Bxg3 {[%clk 0:00:19]}  Qg6 {[%clk 0:00:07]} 33. Rxg2 {[%clk 0:00:16]}  fxg2 {[%clk 0:00:06]} 34. Kxg2 {[%clk 0:00:15]}  Qg4 {[%clk 0:00:06]} 35. Bd3 {[%clk 0:00:10]}  Qh5 {[%clk 0:00:02]} 36. Qf2 {[%clk 0:00:09]}  Qxd5+ {[%clk 0:00:02]} 37. Qf3 {[%clk 0:00:09]}  Qxf3+ {[%clk 0:00:02]} 38. Kxf3 {[%clk 0:00:08]}  Rd8 {[%clk 0:00:03]} 39. Ke3 {[%clk 0:00:08]}  Re8+ {[%clk 0:00:03]} 40. Be4 {[%clk 0:00:08]}  Kg8 {[%clk 0:00:04]} 41. Kd3 {[%clk 0:00:08]}  Kf7 {[%clk 0:00:04]} 42. Bxb7 {[%clk 0:00:08]}  Re6 {[%clk 0:00:03]} 43. Bd5 {[%clk 0:00:08]} 1-0


[Site "https://www.chess.com"]

[Event "Titled Tuesday Blitz February 07 Late 2023"]
[White "Gatterer, Florian"]
[Black "Winkels, Marcel"]
[WhiteFideId "811688"]
[BlackFideId "1003887"]
[WhiteElo "2170"]
[BlackElo "1960"]
[Result "1-0"]
[Round "04"]
[TimeControl "180+2"]
[Date "2023.02.07"]
[WhiteClock "0:01:56"]
[BlackClock "0:01:51"]

1. e4 {[%clk 0:03:00]}  c5 {[%clk 0:03:00]} 2. d4 {[%clk 0:02:57]}  cxd4 {[%clk 0:02:58]} 3. c3 {[%clk 0:02:57]}  e5 {[%clk 0:02:51]} 4. cxd4 {[%clk 0:02:53]}  exd4 {[%clk 0:02:48]} 5. Nf3 {[%clk 0:02:52]}  Nc6 {[%clk 0:02:47]} 6. Nxd4 {[%clk 0:02:49]}  Nf6 {[%clk 0:02:47]} 7. Nc3 {[%clk 0:02:49]}  Bb4 {[%clk 0:02:45]} 8. Nxc6 {[%clk 0:02:49]}  Bxc3+ {[%clk 0:02:38]} 9. bxc3 {[%clk 0:02:46]}  bxc6 {[%clk 0:02:38]} 10. Bd3 {[%clk 0:02:44]}  h6 {[%clk 0:02:36]} 11. O-O {[%clk 0:02:40]}  O-O {[%clk 0:02:35]} 12. e5 {[%clk 0:02:41]}  Nd5 {[%clk 0:02:34]} 13. c4 {[%clk 0:02:41]}  Nb4 {[%clk 0:02:33]} 14. Bb1 {[%clk 0:02:31]}  Ba6 {[%clk 0:02:19]} 15. a3 {[%clk 0:02:18]}  Bxc4 {[%clk 0:02:09]} 16. axb4 {[%clk 0:02:17]}  Bxf1 {[%clk 0:02:09]} 17. Qxf1 {[%clk 0:02:17]}  Qb6 {[%clk 0:02:07]} 18. Qd3 {[%clk 0:01:58]}  Qxb4 {[%clk 0:01:51]} 19. Qh7# {[%clk 0:01:56]} 1-0


[Site "https://www.chess.com"]

[Event "Titled Tuesday Blitz February 07 Late 2023"]
[White "Slavin, Alexey"]
[Black "Kovalevsky, Stanislav"]
[WhiteFideId "24104388"]
[BlackFideId "13508598"]
[WhiteElo "2364"]
[BlackElo "2237"]
[Result "0-1"]
[Round "04"]
[TimeControl "180+2"]
[Date "2023.02.07"]
[WhiteClock "0:00:10"]
[BlackClock "0:00:24"]

1. e4 {[%clk 0:02:59]}  e6 {[%clk 0:02:39]} 2. Nf3 {[%clk 0:02:57]}  d5 {[%clk 0:02:40]} 3. e5 {[%clk 0:02:57]}  c5 {[%clk 0:02:41]} 4. b4 {[%clk 0:02:57]}  Nc6 {[%clk 0:02:41]} 5. bxc5 {[%clk 0:02:56]}  Bxc5 {[%clk 0:02:41]} 6. d4 {[%clk 0:02:56]}  Bb6 {[%clk 0:02:39]} 7. c3 {[%clk 0:02:56]}  Nge7 {[%clk 0:02:39]} 8. Bd3 {[%clk 0:02:54]}  Bd7 {[%clk 0:02:37]} 9. O-O {[%clk 0:02:54]}  Qc7 {[%clk 0:02:33]} 10. a4 {[%clk 0:02:53]}  f6 {[%clk 0:02:31]} 11. Bf4 {[%clk 0:02:37]}  f5 {[%clk 0:02:31]} 12. Na3 {[%clk 0:02:35]}  a6 {[%clk 0:02:30]} 13. h4 {[%clk 0:02:31]}  Na5 {[%clk 0:02:25]} 14. Rc1 {[%clk 0:01:56]}  Nc4 {[%clk 0:02:20]} 15. Nxc4 {[%clk 0:01:35]}  dxc4 {[%clk 0:02:21]} 16. Bb1 {[%clk 0:01:34]}  Nd5 {[%clk 0:02:19]} 17. Bd2 {[%clk 0:01:33]}  Qc6 {[%clk 0:02:15]} 18. Bc2 {[%clk 0:01:29]}  Ba5 {[%clk 0:02:14]} 19. Qe1 {[%clk 0:01:25]}  O-O {[%clk 0:02:12]} 20. Ra1 {[%clk 0:01:21]}  b5 {[%clk 0:02:07]} 21. axb5 {[%clk 0:01:20]}  axb5 {[%clk 0:02:08]} 22. h5 {[%clk 0:01:14]}  Rfb8 {[%clk 0:02:05]} 23. h6 {[%clk 0:01:08]}  g6 {[%clk 0:02:05]} 24. Ng5 {[%clk 0:01:07]}  Bd8 {[%clk 0:01:55]} 25. Rxa8 {[%clk 0:01:01]}  Rxa8 {[%clk 0:01:56]} 26. Nh3 {[%clk 0:00:46]}  Ra2 {[%clk 0:01:42]} 27. Bd1 {[%clk 0:00:42]}  b4 {[%clk 0:01:38]} 28. cxb4 {[%clk 0:00:37]}  c3 {[%clk 0:01:38]} 29. Bc1 {[%clk 0:00:34]}  Ra1 {[%clk 0:01:33]} 30. Bf3 {[%clk 0:00:32]}  Qc4 {[%clk 0:01:26]} 31. Nf4 {[%clk 0:00:31]}  Nxf4 {[%clk 0:01:20]} 32. Qe3 {[%clk 0:00:25]}  Nd3 {[%clk 0:01:03]} 33. Be2 {[%clk 0:00:23]}  Bb5 {[%clk 0:01:00]} 34. Rd1 {[%clk 0:00:21]}  Qb3 {[%clk 0:00:35]} 35. Rxd3 {[%clk 0:00:15]}  Bxd3 {[%clk 0:00:31]} 36. Bxd3 {[%clk 0:00:15]}  Qd1+ {[%clk 0:00:31]} 37. Kh2 {[%clk 0:00:14]}  Qxc1 {[%clk 0:00:28]} 38. Qf3 {[%clk 0:00:10]}  Qh1+ {[%clk 0:00:24]} 39. Kg3 {[%clk 0:00:10]}  Qh4# {[%clk 0:00:24]} 0-1


[Site "https://www.chess.com"]

[Event "Titled Tuesday Blitz February 07 Late 2023"]
[White "Hristodoulou, Panagiotis"]
[Black "Ward, Ieuan C"]
[WhiteFideId "4214340"]
[BlackFideId "406627"]
[WhiteElo "2372"]
[BlackElo "2028"]
[Result "1-0"]
[Round "04"]
[TimeControl "180+2"]
[Date "2023.02.07"]
[WhiteClock "0:00:35"]
[BlackClock "0:00:06"]

1. e4 {[%clk 0:03:00]}  b6 {[%clk 0:02:55]} 2. d4 {[%clk 0:03:00]}  Bb7 {[%clk 0:02:55]} 3. Nc3 {[%clk 0:03:00]}  e6 {[%clk 0:02:56]} 4. Bd3 {[%clk 0:02:59]}  Bb4 {[%clk 0:02:56]} 5. Ne2 {[%clk 0:02:58]}  f5 {[%clk 0:02:55]} 6. exf5 {[%clk 0:02:58]}  exf5 {[%clk 0:02:48]} 7. O-O {[%clk 0:02:58]}  Ne7 {[%clk 0:02:41]} 8. a3 {[%clk 0:02:52]}  Bxc3 {[%clk 0:02:38]} 9. Nxc3 {[%clk 0:02:52]}  O-O {[%clk 0:02:38]} 10. Re1 {[%clk 0:02:52]}  h6 {[%clk 0:02:35]} 11. Qh5 {[%clk 0:02:39]}  d5 {[%clk 0:02:24]} 12. Bf4 {[%clk 0:02:34]}  Rf7 {[%clk 0:02:14]} 13. Re2 {[%clk 0:02:22]}  Nd7 {[%clk 0:02:13]} 14. f3 {[%clk 0:02:21]}  Nf6 {[%clk 0:02:09]} 15. Qh3 {[%clk 0:02:20]}  Qd7 {[%clk 0:02:05]} 16. Rae1 {[%clk 0:02:19]}  a6 {[%clk 0:01:46]} 17. Be5 {[%clk 0:02:03]}  Re8 {[%clk 0:01:32]} 18. Nd1 {[%clk 0:01:44]}  c5 {[%clk 0:01:29]} 19. c3 {[%clk 0:01:40]}  Bc8 {[%clk 0:01:20]} 20. Bxf6 {[%clk 0:01:11]}  Rxf6 {[%clk 0:01:17]} 21. Ne3 {[%clk 0:01:11]}  Ng6 {[%clk 0:00:59]} 22. Nxd5 {[%clk 0:00:56]}  Rxe2 {[%clk 0:00:50]} 23. Nxf6+ {[%clk 0:00:56]}  gxf6 {[%clk 0:00:51]} 24. Rxe2 {[%clk 0:00:55]}  cxd4 {[%clk 0:00:51]} 25. c4 {[%clk 0:00:53]}  Kh7 {[%clk 0:00:47]} 26. Qg3 {[%clk 0:00:51]}  Ne5 {[%clk 0:00:43]} 27. f4 {[%clk 0:00:48]}  Nxd3 {[%clk 0:00:38]} 28. Qxd3 {[%clk 0:00:49]}  Bb7 {[%clk 0:00:37]} 29. h3 {[%clk 0:00:47]}  Be4 {[%clk 0:00:35]} 30. Qd2 {[%clk 0:00:45]}  d3 {[%clk 0:00:33]} 31. Re3 {[%clk 0:00:45]}  Qd4 {[%clk 0:00:32]} 32. Kh2 {[%clk 0:00:41]}  Qxc4 {[%clk 0:00:32]} 33. Rg3 {[%clk 0:00:41]}  Qd4 {[%clk 0:00:29]} 34. Qc1 {[%clk 0:00:37]}  Qd7 {[%clk 0:00:24]} 35. Qc4 {[%clk 0:00:37]}  Bd5 {[%clk 0:00:08]} 36. Qxd3 {[%clk 0:00:35]}  Qf7 {[%clk 0:00:06]} 37. Qxf5+ {[%clk 0:00:35]} 1-0


[Site "https://www.chess.com"]

[Event "Titled Tuesday Blitz February 07 Late 2023"]
[White "Rose, Felix"]
[Black "Van Meegen, Ruud"]
[WhiteFideId "5105722"]
[BlackFideId "1034995"]
[WhiteElo "2091"]
[BlackElo "2311"]
[Result "1-0"]
[Round "04"]
[TimeControl "180+2"]
[Date "2023.02.07"]
[WhiteClock "0:00:26"]
[BlackClock "0:01:30"]

1. e4 {[%clk 0:03:00]}  c5 {[%clk 0:02:59]} 2. Nf3 {[%clk 0:03:00]}  Nc6 {[%clk 0:02:59]} 3. d4 {[%clk 0:03:01]}  cxd4 {[%clk 0:02:59]} 4. Nxd4 {[%clk 0:03:02]}  g6 {[%clk 0:02:59]} 5. c4 {[%clk 0:03:01]}  Nf6 {[%clk 0:02:59]} 6. Nc3 {[%clk 0:03:01]}  d6 {[%clk 0:02:59]} 7. f3 {[%clk 0:03:01]}  Nxd4 {[%clk 0:02:58]} 8. Qxd4 {[%clk 0:03:01]}  Bg7 {[%clk 0:02:59]} 9. Be3 {[%clk 0:03:02]}  O-O {[%clk 0:02:58]} 10. Qd2 {[%clk 0:03:03]}  Qa5 {[%clk 0:02:58]} 11. Rc1 {[%clk 0:02:54]}  Be6 {[%clk 0:02:58]} 12. Bd3 {[%clk 0:02:53]}  Rfc8 {[%clk 0:02:57]} 13. b3 {[%clk 0:02:51]}  a6 {[%clk 0:02:56]} 14. Ne2 {[%clk 0:02:51]}  Qxd2+ {[%clk 0:02:53]} 15. Kxd2 {[%clk 0:02:52]}  b5 {[%clk 0:02:52]} 16. Nd4 {[%clk 0:02:45]}  bxc4 {[%clk 0:02:38]} 17. Nxe6 {[%clk 0:02:43]}  c3+ {[%clk 0:02:36]} 18. Rxc3 {[%clk 0:01:46]}  Rxc3 {[%clk 0:02:22]} 19. Kxc3 {[%clk 0:01:28]}  Nxe4+ {[%clk 0:02:04]} 20. Kb4 {[%clk 0:00:47]}  Rb8+ {[%clk 0:01:58]} 21. Ka3 {[%clk 0:00:41]}  Nc5 {[%clk 0:01:34]} 22. Nxc5 {[%clk 0:00:35]}  dxc5 {[%clk 0:01:30]} 23. Bxc5 {[%clk 0:00:31]}  Rd8 {[%clk 0:01:30]} 24. Rd1 {[%clk 0:00:26]} 1-0


[Site "https://www.chess.com"]

[Event "Titled Tuesday Blitz February 07 Late 2023"]
[White "Souza, Gustavo Horokoski De"]
[Black "EdmundPlayer"]
[WhiteFideId "2146584"]
[WhiteElo "1943"]
[BlackElo "2275"]
[Result "0-1"]
[Round "04"]
[TimeControl "180+2"]
[Date "2023.02.07"]
[WhiteClock "0:00:52"]
[BlackClock "0:00:11"]

1. d4 {[%clk 0:03:00]}  Nf6 {[%clk 0:02:57]} 2. c4 {[%clk 0:02:54]}  g6 {[%clk 0:02:57]} 3. Nc3 {[%clk 0:02:54]}  d5 {[%clk 0:02:56]} 4. Nf3 {[%clk 0:02:43]}  Bg7 {[%clk 0:02:55]} 5. Bf4 {[%clk 0:02:43]}  O-O {[%clk 0:02:53]} 6. e3 {[%clk 0:02:43]}  c5 {[%clk 0:02:50]} 7. dxc5 {[%clk 0:02:43]}  Qa5 {[%clk 0:02:47]} 8. Rc1 {[%clk 0:02:37]}  Rd8 {[%clk 0:02:30]} 9. cxd5 {[%clk 0:02:29]}  Nxd5 {[%clk 0:02:28]} 10. Qb3 {[%clk 0:02:12]}  Nxf4 {[%clk 0:02:11]} 11. exf4 {[%clk 0:02:13]}  Qxc5 {[%clk 0:02:03]} 12. Bc4 {[%clk 0:02:11]}  e6 {[%clk 0:01:41]} 13. O-O {[%clk 0:02:06]}  Nc6 {[%clk 0:01:32]} 14. Ne4 {[%clk 0:01:54]}  Qf5 {[%clk 0:01:28]} 15. Qe3 {[%clk 0:01:37]}  b6 {[%clk 0:00:38]} 16. Rfd1 {[%clk 0:01:15]}  Bd7 {[%clk 0:00:26]} 17. Nd6 {[%clk 0:01:07]}  Qa5 {[%clk 0:00:23]} 18. Nb7 {[%clk 0:01:05]}  Qf5 {[%clk 0:00:19]} 19. Nxd8 {[%clk 0:01:04]}  Rxd8 {[%clk 0:00:19]} 20. Bd3 {[%clk 0:00:59]}  Qa5 {[%clk 0:00:18]} 21. Bb1 {[%clk 0:00:57]}  Bxb2 {[%clk 0:00:16]} 22. Rxc6 {[%clk 0:00:55]}  Bxc6 {[%clk 0:00:14]} 23. Rxd8+ {[%clk 0:00:55]}  Kg7 {[%clk 0:00:14]} 24. Rd1 {[%clk 0:00:53]}  Qa4 {[%clk 0:00:12]} 25. Ne5 {[%clk 0:00:52]}  Qxd1+ {[%clk 0:00:11]} 0-1


[Site "https://www.chess.com"]

[Event "Titled Tuesday Blitz February 07 Late 2023"]
[White "Antonio, Jorge Carlos"]
[Black "Marcolino, Daniel Mattos"]
[WhiteFideId "113190"]
[BlackFideId "2106841"]
[WhiteElo "2277"]
[BlackElo "2006"]
[Result "1/2-1/2"]
[Round "04"]
[TimeControl "180+2"]
[Date "2023.02.07"]
[WhiteClock "0:00:40"]
[BlackClock "0:00:05"]

1. d4 {[%clk 0:03:00]}  d5 {[%clk 0:02:58]} 2. Nf3 {[%clk 0:03:01]}  Nf6 {[%clk 0:02:57]} 3. Bf4 {[%clk 0:02:59]}  c5 {[%clk 0:02:56]} 4. e3 {[%clk 0:02:58]}  Nc6 {[%clk 0:02:56]} 5. c3 {[%clk 0:02:58]}  Qb6 {[%clk 0:02:56]} 6. Qc2 {[%clk 0:02:51]}  Bf5 {[%clk 0:02:55]} 7. dxc5 {[%clk 0:02:48]}  Bxc2 {[%clk 0:02:53]} 8. cxb6 {[%clk 0:02:44]}  axb6 {[%clk 0:02:46]} 9. Na3 {[%clk 0:02:40]}  Bg6 {[%clk 0:02:39]} 10. Nb5 {[%clk 0:02:36]}  Ra5 {[%clk 0:02:27]} 11. b4 {[%clk 0:02:31]}  Ra4 {[%clk 0:02:19]} 12. a3 {[%clk 0:02:27]}  e6 {[%clk 0:02:13]} 13. h3 {[%clk 0:02:13]}  Kd7 {[%clk 0:02:02]} 14. Be2 {[%clk 0:02:08]}  Ne4 {[%clk 0:01:57]} 15. O-O {[%clk 0:02:04]}  Nd6 {[%clk 0:01:34]} 16. Rfd1 {[%clk 0:01:58]}  Bc2 {[%clk 0:00:34]} 17. Rd2 {[%clk 0:01:55]}  Bb3 {[%clk 0:00:34]} 18. Nxd6 {[%clk 0:01:47]}  Bxd6 {[%clk 0:00:34]} 19. Bxd6 {[%clk 0:01:46]}  Kxd6 {[%clk 0:00:35]} 20. e4 {[%clk 0:01:46]}  Rha8 {[%clk 0:00:32]} 21. exd5 {[%clk 0:01:42]}  exd5 {[%clk 0:00:29]} 22. c4 {[%clk 0:01:42]}  Rxa3 {[%clk 0:00:26]} 23. Rxa3 {[%clk 0:01:41]}  Rxa3 {[%clk 0:00:27]} 24. Rxd5+ {[%clk 0:01:33]}  Ke7 {[%clk 0:00:26]} 25. Rb5 {[%clk 0:01:31]}  Ra1+ {[%clk 0:00:17]} 26. Kh2 {[%clk 0:01:31]}  Rc1 {[%clk 0:00:17]} 27. Rxb6 {[%clk 0:01:26]}  Bxc4 {[%clk 0:00:17]} 28. Rxb7+ {[%clk 0:01:25]}  Kf6 {[%clk 0:00:16]} 29. Bxc4 {[%clk 0:01:22]}  Rxc4 {[%clk 0:00:15]} 30. Rb6 {[%clk 0:01:22]}  Ke7 {[%clk 0:00:13]} 31. b5 {[%clk 0:01:18]}  Nd4 {[%clk 0:00:09]} 32. Rb7+ {[%clk 0:01:15]}  Kf6 {[%clk 0:00:09]} 33. Nxd4 {[%clk 0:01:09]}  Rxd4 {[%clk 0:00:10]} 34. b6 {[%clk 0:01:01]}  h5 {[%clk 0:00:10]} 35. Kg3 {[%clk 0:00:57]}  Rb4 {[%clk 0:00:10]} 36. Kf3 {[%clk 0:00:55]}  g6 {[%clk 0:00:11]} 37. Ke3 {[%clk 0:00:55]}  Rb2 {[%clk 0:00:11]} 38. g3 {[%clk 0:00:55]}  Ke6 {[%clk 0:00:08]} 39. h4 {[%clk 0:00:54]}  Kf6 {[%clk 0:00:06]} 40. f3 {[%clk 0:00:54]}  Rb3+ {[%clk 0:00:05]} 41. Ke4 {[%clk 0:00:54]}  Ke6 {[%clk 0:00:05]} 42. g4 {[%clk 0:00:49]}  hxg4 {[%clk 0:00:03]} 43. fxg4 {[%clk 0:00:49]}  Rb4+ {[%clk 0:00:04]} 44. Kf3 {[%clk 0:00:48]}  Rb3+ {[%clk 0:00:05]} 45. Kf4 {[%clk 0:00:48]}  Rb4+ {[%clk 0:00:05]} 46. Kg5 {[%clk 0:00:48]}  Rb5+ {[%clk 0:00:02]} 47. Kh6 {[%clk 0:00:47]}  Rb4 {[%clk 0:00:03]} 48. Kg5 {[%clk 0:00:43]}  Rb5+ {[%clk 0:00:03]} 49. Kf4 {[%clk 0:00:43]}  Rb4+ {[%clk 0:00:04]} 50. Kf3 {[%clk 0:00:43]}  Rb3+ {[%clk 0:00:04]} 51. Kf4 {[%clk 0:00:40]}  Rb4+ {[%clk 0:00:05]} 1/2-1/2


[Site "https://www.chess.com"]

[Event "Titled Tuesday Blitz February 07 Late 2023"]
[White "Desideri, Ricardo Maruchi"]
[Black "Vaglio Munoz, Jaime"]
[WhiteFideId "2110440"]
[BlackFideId "6500145"]
[WhiteElo "1959"]
[BlackElo "2174"]
[Result "0-1"]
[Round "04"]
[TimeControl "180+2"]
[Date "2023.02.07"]
[WhiteClock "0:00:01"]
[BlackClock "0:01:21"]

1. e4 {[%clk 0:03:00]}  c5 {[%clk 0:02:59]} 2. Nf3 {[%clk 0:02:59]}  Qa5 {[%clk 0:02:59]} 3. Nc3 {[%clk 0:02:53]}  a6 {[%clk 0:02:58]} 4. d4 {[%clk 0:02:48]}  b5 {[%clk 0:02:56]} 5. Be3 {[%clk 0:02:31]}  b4 {[%clk 0:02:50]} 6. Nd5 {[%clk 0:02:18]}  e6 {[%clk 0:02:49]} 7. Nf4 {[%clk 0:02:08]}  cxd4 {[%clk 0:02:48]} 8. Nxd4 {[%clk 0:01:55]}  Bb7 {[%clk 0:02:46]} 9. Nb3 {[%clk 0:01:46]}  Qc7 {[%clk 0:02:45]} 10. Bd3 {[%clk 0:01:41]}  Nf6 {[%clk 0:02:44]} 11. f3 {[%clk 0:01:37]}  Bd6 {[%clk 0:02:43]} 12. Ne2 {[%clk 0:01:34]}  Bxh2 {[%clk 0:02:38]} 13. f4 {[%clk 0:01:29]}  Ng4 {[%clk 0:02:28]} 14. Qd2 {[%clk 0:01:25]}  g5 {[%clk 0:02:26]} 15. g3 {[%clk 0:01:20]}  h5 {[%clk 0:02:10]} 16. O-O-O {[%clk 0:01:17]}  h4 {[%clk 0:02:06]} 17. gxh4 {[%clk 0:01:08]}  Nxe3 {[%clk 0:02:01]} 18. Qxe3 {[%clk 0:01:07]}  Bxf4 {[%clk 0:02:00]} 19. Nxf4 {[%clk 0:01:02]}  Qxf4 {[%clk 0:01:59]} 20. Qxf4 {[%clk 0:01:01]}  gxf4 {[%clk 0:02:00]} 21. Nc5 {[%clk 0:00:49]}  Bc8 {[%clk 0:01:58]} 22. e5 {[%clk 0:00:42]}  Nc6 {[%clk 0:01:51]} 23. Be4 {[%clk 0:00:40]}  Rh5 {[%clk 0:01:46]} 24. Bxc6 {[%clk 0:00:25]}  dxc6 {[%clk 0:01:45]} 25. Nd3 {[%clk 0:00:26]}  Bb7 {[%clk 0:01:35]} 26. Rh2 {[%clk 0:00:18]}  Ke7 {[%clk 0:01:32]} 27. Re1 {[%clk 0:00:18]}  f3 {[%clk 0:01:25]} 28. Re3 {[%clk 0:00:14]}  c5 {[%clk 0:01:25]} 29. Nxc5 {[%clk 0:00:12]}  Bd5 {[%clk 0:01:25]} 30. Nd3 {[%clk 0:00:02]}  a5 {[%clk 0:01:24]} 31. b3 {[%clk 0:00:01]}  a4 {[%clk 0:01:21]} 0-1


[Site "https://www.chess.com"]

[Event "Titled Tuesday Blitz February 07 Late 2023"]
[White "Paravyan, David"]
[Black "So, Wesley"]
[WhiteFideId "4194985"]
[BlackFideId "5202213"]
[WhiteElo "2601"]
[BlackElo "2760"]
[Result "1/2-1/2"]
[Round "05"]
[TimeControl "180+2"]
[Date "2023.02.07"]
[WhiteClock "0:00:05"]
[BlackClock "0:00:06"]

1. e4 {[%clk 0:03:00]}  e5 {[%clk 0:02:58]} 2. Nf3 {[%clk 0:03:01]}  Nf6 {[%clk 0:02:55]} 3. d4 {[%clk 0:03:00]}  Nxe4 {[%clk 0:02:53]} 4. Bd3 {[%clk 0:02:57]}  d5 {[%clk 0:02:53]} 5. Nxe5 {[%clk 0:02:57]}  Bd6 {[%clk 0:02:53]} 6. O-O {[%clk 0:02:56]}  O-O {[%clk 0:02:53]} 7. c4 {[%clk 0:02:55]}  c5 {[%clk 0:02:52]} 8. Nc3 {[%clk 0:02:46]}  Nf6 {[%clk 0:02:38]} 9. Nxd5 {[%clk 0:02:20]}  Nxd5 {[%clk 0:02:37]} 10. cxd5 {[%clk 0:02:19]}  cxd4 {[%clk 0:02:37]} 11. Nc4 {[%clk 0:02:19]}  Be7 {[%clk 0:02:17]} 12. Re1 {[%clk 0:02:15]}  Na6 {[%clk 0:02:00]} 13. Bf4 {[%clk 0:02:07]}  Nb4 {[%clk 0:01:52]} 14. Rxe7 {[%clk 0:01:46]}  Nxd3 {[%clk 0:01:52]} 15. Qxd3 {[%clk 0:01:45]}  Qxe7 {[%clk 0:01:52]} 16. Bd6 {[%clk 0:01:46]}  Qf6 {[%clk 0:01:52]} 17. Bxf8 {[%clk 0:01:46]}  Bf5 {[%clk 0:01:53]} 18. Bxg7 {[%clk 0:01:32]}  Kxg7 {[%clk 0:01:53]} 19. Qg3+ {[%clk 0:01:29]}  Bg6 {[%clk 0:01:52]} 20. h4 {[%clk 0:01:27]}  h5 {[%clk 0:01:51]} 21. Rd1 {[%clk 0:00:34]}  Rd8 {[%clk 0:01:50]} 22. d6 {[%clk 0:00:34]}  b5 {[%clk 0:01:45]} 23. Nd2 {[%clk 0:00:35]}  Qxd6 {[%clk 0:01:36]} 24. Qxd6 {[%clk 0:00:35]}  Rxd6 {[%clk 0:01:37]} 25. Nb3 {[%clk 0:00:34]}  d3 {[%clk 0:01:36]} 26. f3 {[%clk 0:00:35]}  a5 {[%clk 0:01:14]} 27. Nxa5 {[%clk 0:00:19]}  Rd4 {[%clk 0:01:13]} 28. Nc6 {[%clk 0:00:15]}  Rxh4 {[%clk 0:01:02]} 29. Ne5 {[%clk 0:00:15]}  Ra4 {[%clk 0:00:42]} 30. a3 {[%clk 0:00:16]}  b4 {[%clk 0:00:41]} 31. Nxg6 {[%clk 0:00:15]}  bxa3 {[%clk 0:00:41]} 32. bxa3 {[%clk 0:00:15]}  Kxg6 {[%clk 0:00:36]} 33. Rxd3 {[%clk 0:00:15]}  h4 {[%clk 0:00:35]} 34. Kh2 {[%clk 0:00:16]}  Kg5 {[%clk 0:00:35]} 35. Kh3 {[%clk 0:00:16]}  f5 {[%clk 0:00:35]} 36. Rc3 {[%clk 0:00:17]}  Ra5 {[%clk 0:00:34]} 37. f4+ {[%clk 0:00:15]}  Kxf4 {[%clk 0:00:33]} 38. Kxh4 {[%clk 0:00:15]}  Ra8 {[%clk 0:00:31]} 39. Rf3+ {[%clk 0:00:10]}  Ke4 {[%clk 0:00:30]} 40. Kg3 {[%clk 0:00:09]}  Ke5 {[%clk 0:00:08]} 41. Re3+ {[%clk 0:00:08]}  Kf6 {[%clk 0:00:09]} 42. Kf3 {[%clk 0:00:07]}  Kg5 {[%clk 0:00:09]} 43. Rb3 {[%clk 0:00:07]}  Ra5 {[%clk 0:00:07]} 44. Ke2 {[%clk 0:00:07]}  Kg4 {[%clk 0:00:05]} 45. g3 {[%clk 0:00:04]}  f4 {[%clk 0:00:04]} 46. gxf4 {[%clk 0:00:05]}  Kxf4 {[%clk 0:00:05]} 47. Kd3 {[%clk 0:00:06]}  Ke5 {[%clk 0:00:05]} 48. Kc4 {[%clk 0:00:06]}  Kd6 {[%clk 0:00:06]} 49. Kb4 {[%clk 0:00:07]}  Ra8 {[%clk 0:00:06]} 50. Rc3 {[%clk 0:00:07]}  Kd7 {[%clk 0:00:05]} 51. a4 {[%clk 0:00:07]}  Rc8 {[%clk 0:00:05]} 52. Rxc8 {[%clk 0:00:03]}  Kxc8 {[%clk 0:00:06]} 53. a5 {[%clk 0:00:04]}  Kb7 {[%clk 0:00:06]} 54. a6+ {[%clk 0:00:05]}  Kxa6 {[%clk 0:00:06]} 1/2-1/2


[Site "https://www.chess.com"]